bitfinex/quotes_ETHUSD_20240810
["timestamp","ask_amount","ask_price","bid_price","bid_amount"]
[1723277965690,1.89964,2632.1,2631.5,3.1841]
[1723277966266,3.79932,2632.1,2631.5,3.1841]
[1723277966476,1.89971,2632.0,2631.5,3.1841]
[1723277966779,1.89982,2631.9,2631.5,3.1841]
[1723277967090,1.89992,2631.7,2631.2,3.3981]
[1723277967259,1.89982,2631.9,2631.3,1.90019]
[1723277967459,1.89965,2632.1,2631.3,0.604729]
[1723277967862,1.89978,2631.9,2631.3,0.604729]
[1723277968090,3.79959,2631.9,2631.3,0.604729]
[1723277968265,1.89985,2631.8,2631.3,0.604729]
[1723277968475,1.89991,2631.7,2631.3,0.604729]
[1723277968798,1.89991,2631.7,2631.2,3.3981]
[1723277970357,1.89978,2631.9,2631.2,5.29832]
[1723277970565,1.8995,2632.3,2631.3,3.3981]
[1723277970781,1.8995,2632.3,2631.1,0.749]
[1723277970782,3.79904,2632.3,2631.7,3.3981]
[1723277970986,1.8995,2632.3,2631.7,3.3981]
[1723277971295,3.79903,2632.3,2631.7,3.3981]
[1723277971665,1.8995,2632.3,2631.7,3.3981]
[1723277971998,1.89956,2632.2,2631.7,3.3981]
[1723277972897,0.34922,2632.4,2631.7,5.298]
[1723277972898,1.89945,2632.4,2631.7,5.298]
[1723277973102,1.89948,2632.3,2631.7,5.298]
[1723277973266,3.79902,2632.3,2631.8,0.09967234]
[1723277973797,1.89948,2632.3,2631.9,0.09964536]
[1723277973998,1.8996,2632.2,2631.9,0.09964536]
[1723277974298,1.89946,2632.4,2631.7,5.29798]
[1723277974611,1.89948,2632.3,2631.7,6.017769]
[1723277974765,1.89948,2632.3,2631.8,0.09967234]
[1723277974967,1.89937,2632.5,2631.7,6.017769]
[1723277975288,1.89945,2632.4,2631.8,0.09967234]
[1723277975489,1.89947,2632.3,2631.8,0.09967234]
[1723277975691,1.89937,2632.5,2631.9,3.3981]
[1723277975858,1.89937,2632.5,2632.0,0.34977723]
[1723277976076,1.89937,2632.5,2632.0,0.44939561]
[1723277976303,1.89937,2632.5,2632.0,0.52529783]
[1723277976518,1.89906,2632.9,2632.3,1.89946]
[1723277976725,1.89912,2632.8,2632.3,1.89946]
[1723277976886,1.89912,2632.8,2632.4,0.09951049]
[1723277977089,1.89912,2632.8,2632.2,1.97542645]
[1723277977424,1.89912,2632.8,2632.3,0.17543102]
[1723277977577,1.8992,2632.7,2632.3,0.09953746]
[1723277977784,1.8992,2632.7,2632.2,0.72731165]
[1723277978085,1.8992,2632.7,2632.3,0.09955074]
[1723277978293,1.8992,2632.7,2632.1,3.3981]
[1723277978613,1.8993,2632.6,2632.2,0.09957771]
[1723277978814,1.89936,2632.5,2632.2,0.09957771]
[1723277979033,1.89947,2632.3,2632.2,0.09957771]
[1723277979321,3.79894,2632.3,2632.2,0.09957771]
[1723277979825,1.89973,2632.0,2631.6,3.3981]
[1723277980578,1.89981,2631.9,2631.6,3.3981]
[1723277982819,1.89985,2631.8,2631.3,6.3981]
[1723277982991,1.89985,2631.8,2631.4,0.7222]
[1723277983337,1.89985,2631.8,2631.3,3.3981]
[1723277983338,1.89995,2631.7,2631.3,3.3981]
[1723277984422,1.89985,2631.8,2631.3,3.3981]
[1723277986199,1.89972,2632.0,2631.3,5.29829]
[1723277986885,1.89972,2632.0,2631.3,5.29824]
[1723277987086,1.89972,2632.0,2631.4,1.90011]
[1723277987986,1.89958,2632.2,2631.5,1.90004]
[1723277988185,1.89967,2632.1,2631.7,3.2891]
[1723277988390,1.89967,2632.1,2631.8,0.09971884]
[1723277988600,1.89967,2632.1,2631.7,3.2891]
[1723277988812,1.89967,2632.1,2631.8,0.09971884]
[1723277989113,1.89967,2632.1,2631.7,3.2891]
[1723277989345,1.89967,2632.1,2631.8,0.09971884]
[1723277989645,1.8997,2632.0,2631.7,3.2891]
[1723277989817,1.8997,2632.0,2631.9,0.09969186]
[1723277990020,1.8997,2632.0,2631.8,0.09971884]
[1723277990213,1.8997,2632.0,2631.9,0.09969186]
[1723277990543,1.89952,2632.3,2631.7,5.18895]
[1723277990842,1.89952,2632.3,2631.8,0.09971884]
[1723277991145,1.89952,2632.3,2631.7,5.18895]
[1723277991328,1.89955,2632.2,2631.7,5.18895]
[1723277991529,1.89955,2632.2,2631.8,0.09971884]
[1723277991844,1.89955,2632.2,2631.7,3.2891]
[1723277992002,1.89955,2632.2,2631.9,0.09969186]
[1723277992339,1.89955,2632.2,2631.7,3.2891]
[1723277992540,1.89955,2632.2,2632.0,0.09966488]
[1723277992717,1.89955,2632.2,2631.7,3.2891]
[1723277993104,1.89955,2632.2,2631.8,0.09971884]
[1723277993346,1.89955,2632.2,2631.7,3.2891]
[1723277993843,1.89955,2632.2,2631.8,0.09971884]
[1723277994217,1.89955,2632.2,2631.7,3.2891]
[1723277994418,1.89955,2632.2,2631.9,0.10007034]
[1723277994790,1.89955,2632.2,2631.8,0.10009732]
[1723277994927,1.89955,2632.2,2632.0,0.10004336]
[1723277995139,1.89955,2632.2,2632.1,0.10001638]
[1723277995299,1.89955,2632.2,2631.7,3.998009]
[1723277995621,1.89955,2632.2,2631.8,0.10009732]
[1723277996013,1.89955,2632.2,2631.7,3.998009]
[1723277996219,1.89955,2632.2,2631.9,0.10007034]
[1723277996448,1.89955,2632.2,2631.8,0.10009732]
[1723277996610,1.89955,2632.2,2632.0,0.10004336]
[1723277996811,1.89955,2632.2,2631.9,0.10007034]
[1723277997110,1.89955,2632.2,2632.0,0.10004336]
[1723277997310,1.89955,2632.2,2631.7,3.2891]
[1723277997645,1.89955,2632.2,2631.8,0.10009732]
[1723277998004,1.89955,2632.2,2631.7,3.998009]
[1723277998348,1.89955,2632.2,2631.8,0.10009732]
[1723277998550,1.89955,2632.2,2631.7,5.897909]
[1723277998754,1.89955,2632.2,2631.8,0.10009732]
[1723277998962,1.89929,2632.6,2631.9,3.2891]
[1723277999144,1.89919,2632.7,2632.2,3.2891]
[1723277999330,1.89915,2632.8,2632.2,3.31995254]
[1723277999531,1.89905,2632.9,2632.3,1.89944]
[1723277999715,1.89912,2632.8,2632.3,0.09989603]
[1723277999919,1.89912,2632.8,2632.2,5.18865]
[1723278000330,1.136,2632.8,2632.3,0.09969682]
[1723278000527,1.8993,2632.6,2632.2,3.2891]
[1723278000955,1.8993,2632.6,2632.3,0.09969682]
[1723278001162,3.79862,2632.6,2632.3,0.09969682]
[1723278001323,1.8993,2632.6,2632.2,3.2891]
[1723278001521,1.89933,2632.5,2632.4,0.09957027]
[1723278002062,1.89933,2632.5,2632.1,3.2891]
[1723278002298,1.89933,2632.5,2632.4,0.09962338]
[1723278002454,1.89933,2632.5,2632.1,3.2891]
[1723278002631,3.79866,2632.5,2632.4,0.09962338]
[1723278002827,3.79866,2632.5,2632.1,3.2891]
[1723278002828,4.506906,2632.5,2632.1,3.2891]
[1723278003058,1.89933,2632.5,2632.4,0.09954371]
[1723278003262,1.89933,2632.5,2632.1,3.2891]
[1723278003435,1.89933,2632.5,2632.4,0.09954371]
[1723278003756,7.08167,2632.7,2632.1,3.2891]
[1723278003965,1.89933,2632.5,2631.8,3.2891]
[1723278004459,1.89949,2632.3,2631.9,0.09967858]
[1723278004664,1.89933,2632.5,2631.9,0.09967858]
[1723278004958,1.89933,2632.5,2631.9,1.99943858]
[1723278005252,5.18242,2632.7,2631.9,3.01827544]
[1723278005466,1.89926,2632.6,2632.1,3.4916]
[1723278005818,1.89926,2632.6,2632.2,0.09932538]
[1723278006866,3.955921,2633.0,2632.2,0.09932538]
[1723278007161,1.89942,2632.4,2632.2,0.09932538]
[1723278008427,3.79888,2632.4,2632.2,0.09932538]
[1723278008628,1.89942,2632.4,2632.2,0.09932538]
[1723278008867,1.89942,2632.4,2631.9,3.4916]
[1723278009061,1.89942,2632.4,2632.3,0.09926521]
[1723278009264,1.89956,2632.2,2631.9,3.4916]
[1723278009813,3.79918,2632.2,2631.9,3.4916]
[1723278009973,1.89946,2632.4,2631.9,3.4916]
[1723278010335,1.89956,2632.2,2631.9,3.4916]
[1723278011756,3.79916,2632.2,2631.9,3.4916]
[1723278011963,1.89965,2632.1,2631.9,3.4916]
[1723278012162,1.89963,2632.1,2631.7,3.4916]
[1723278012550,1.89956,2632.2,2631.7,3.4916]
[1723278013272,3.79916,2632.2,2631.7,3.4916]
[1723278014290,1.89956,2632.2,2631.7,3.4916]
[1723278014491,1.89956,2632.2,2631.7,3.40627289]
[1723278015691,1.89962,2632.1,2631.7,3.40627289]
[1723278016055,1.89969,2632.0,2631.7,3.40627289]
[1723278017398,1.89956,2632.2,2631.7,3.40627289]
[1723278017399,1.89962,2632.1,2631.7,3.40627289]
[1723278018289,1.89956,2632.2,2631.8,0.09977854]
[1723278018813,1.89943,2632.4,2631.9,0.0997914]
[1723278018980,1.89943,2632.4,2631.7,5.64680018]
[1723278019161,3.79952,2631.9,2631.8,0.09981174]
[1723278019363,1.89994,2631.7,2631.4,3.4916]
[1723278019788,1.89994,2631.7,2631.5,0.09989269]
[1723278020207,1.89998,2631.6,2631.5,0.09989269]
[1723278020511,1.89994,2631.7,2631.5,0.09989269]
[1723278022419,1.89998,2631.6,2631.5,0.09989269]
[1723278023414,1.89994,2631.7,2631.5,0.09989269]
[1723278024844,1.90003,2631.6,2631.1,4.6286]
[1723278024986,1.89994,2631.7,2631.6,0.0998657]
[1723278025187,5.33757,2631.8,2631.1,4.6286]
[1723278025188,1.89999,2631.6,2631.1,4.6286]
[1723278025406,1.89999,2631.6,2631.2,0.09997366]
[1723278026302,1.89971,2632.0,2631.3,3.50935645]
[1723278026501,1.89971,2632.0,2631.4,1.96858395]
[1723278026719,1.89971,2632.0,2631.5,3.4696]
[1723278027014,3.79946,2632.0,2631.6,0.0998657]
[1723278027331,1.89971,2632.0,2631.6,0.0998657]
[1723278027484,1.89958,2632.2,2631.6,0.0998657]
[1723278027683,3.03658,2632.2,2631.7,3.4696]
[1723278028129,3.03658,2632.2,2631.8,0.09981174]
[1723278028503,3.03658,2632.2,2631.7,3.4696]
[1723278028725,3.03658,2632.2,2631.9,0.09978476]
[1723278028937,1.89969,2632.0,2631.8,0.09981174]
[1723278029115,1.89969,2632.0,2631.7,3.4696]
[1723278030555,3.03658,2632.2,2631.7,3.4696]
[1723278031553,1.89963,2632.1,2631.7,3.4696]
[1723278032958,1.89971,2632.0,2631.7,3.4696]
[1723278033312,1.89971,2632.0,2631.8,0.09992464]
[1723278033823,1.89971,2632.0,2631.9,0.09989766]
[1723278034027,1.89971,2632.0,2631.7,3.4696]
[1723278034229,1.89971,2632.0,2631.8,0.09992464]
[1723278034416,3.79947,2632.0,2631.7,3.4696]
[1723278034746,1.89971,2632.0,2631.8,0.09992464]
[1723278035047,1.89971,2632.0,2631.7,3.4696]
[1723278035350,1.89971,2632.0,2631.9,0.09989766]
[1723278035533,1.89971,2632.0,2631.8,0.09992464]
[1723278035711,1.89971,2632.0,2631.9,0.09989766]
[1723278036051,1.89971,2632.0,2631.7,3.4696]
[1723278036351,1.89971,2632.0,2631.9,0.09989766]
[1723278036559,1.89971,2632.0,2631.8,0.09992464]
[1723278036711,1.89971,2632.0,2631.9,0.09989766]
[1723278037047,1.89971,2632.0,2631.7,3.4696]
[1723278037224,1.89971,2632.0,2631.9,0.09989766]
[1723278037426,1.89971,2632.0,2631.7,3.4696]
[1723278037649,1.89971,2632.0,2631.8,0.09992464]
[1723278038150,1.89982,2631.9,2631.5,3.4696]
[1723278038447,3.03671,2632.0,2631.5,3.4696]
[1723278038651,1.89984,2631.8,2631.6,0.0999786]
[1723278039057,4.93646,2632.0,2631.6,0.0999786]
[1723278039259,1.89971,2632.0,2631.6,0.0999786]
[1723278039814,1.89977,2631.9,2631.6,0.0999786]
[1723278042851,1.89969,2632.0,2631.7,3.4696]
[1723278043055,1.89969,2632.0,2631.7,3.56955162]
[1723278043255,3.03662,2632.1,2631.7,3.56955162]
[1723278043439,1.89959,2632.2,2631.7,3.56955162]
[1723278043662,3.03652,2632.3,2631.7,5.46942162]
[1723278043862,1.89955,2632.2,2631.7,3.56955162]
[1723278047770,1.89955,2632.2,2631.7,4.23019978]
[1723278048152,0.59526428,2632.7,2631.8,3.2137]
[1723278048373,3.03616,2632.8,2632.2,3.2137]
[1723278048679,3.03616,2632.8,2632.3,0.09994913]
[1723278048969,3.03622,2632.7,2632.3,0.09994913]
[1723278049171,3.03622,2632.7,2632.2,5.18921361]
[1723278049383,3.03622,2632.7,2632.4,0.09992216]
[1723278049587,3.03622,2632.7,2632.3,0.09994913]
[1723278049588,2.202892,2632.6,2632.3,0.09994913]
[1723278049738,1.89927,2632.6,2632.5,0.0998952]
[1723278049939,1.89927,2632.6,2632.4,0.09992216]
[1723278050136,1.89927,2632.6,2632.5,0.0998952]
[1723278050564,2.392808,2632.6,2632.2,3.2137]
[1723278050750,1.89941,2632.4,2632.2,3.2137]
[1723278050959,1.89947,2632.3,2631.7,3.0369]
[1723278051199,1.89947,2632.3,2631.8,3.2137]
[1723278051500,1.89947,2632.3,2631.8,5.11352]
[1723278054501,3.03636,2632.5,2631.8,5.11352]
[1723278054708,3.03636,2632.5,2631.9,1.89976]
[1723278054998,3.03636,2632.5,2632.1,3.2137]
[1723278054999,1.137,2632.5,2632.1,3.2137]
[1723278055185,3.79844,2632.7,2632.1,3.2137]
[1723278055494,1.137,2632.5,2632.1,3.2137]
[1723278055717,1.89927,2632.6,2632.1,3.2137]
[1723278055860,1.137,2632.5,2632.1,3.2137]
[1723278056062,3.03633,2632.5,2632.1,3.2137]
[1723278057208,1.137,2632.5,2632.1,3.2137]
[1723278063199,1.137,2632.5,2632.2,0.09961754]
[1723278063803,2.49412099,2633.2,2632.6,1.89925]
[1723278063941,3.63112099,2633.2,2632.6,1.89925]
[1723278064124,3.63112099,2633.2,2632.7,0.0994827]
[1723278064527,1.89891,2633.1,2632.7,0.0994827]
[1723278065245,3.63112099,2633.2,2632.5,5.11302]
[1723278065555,3.63112099,2633.2,2632.6,1.99837449]
[1723278065845,3.03619,2632.7,2632.6,0.09914449]
[1723278066049,1.89927,2632.6,2632.2,10.685]
[1723278066550,1.89927,2632.6,2632.3,0.09899308]
[1723278066924,2.31067687,2632.6,2632.2,7.49]
[1723278067128,1.89945,2632.4,2632.2,7.49]
[1723278067527,1.137,2632.5,2632.2,7.49]
[1723278068525,4.93531,2632.8,2632.2,7.49]
[1723278068757,3.03614,2632.8,2632.3,3.195]
[1723278069064,1.137,2632.8,2632.3,3.195]
[1723278069426,3.03616,2632.8,2632.3,3.195]
[1723278070858,1.89927,2632.6,2632.3,3.195]
[1723278073431,1.89927,2632.6,2632.1,3.195]
[1723278073761,1.89927,2632.6,2632.1,5.09461]
[1723278074146,8.722347,2632.8,2632.1,5.09461]
[1723278074585,5.428847,2632.8,2632.1,5.09461]
[1723278074753,5.428847,2632.8,2632.1,7.025042]
[1723278075285,5.428847,2632.8,2632.1,6.99418]
[1723278075579,5.428847,2632.8,2632.1,5.09457]
[1723278076288,1.89923,2632.7,2632.1,5.09457]
[1723278077355,3.03615,2632.8,2632.2,3.195]
[1723278077551,1.89915,2632.8,2632.3,3.195]
[1723278077770,3.79832,2632.8,2632.3,3.195]
[1723278078152,3.79832,2632.8,2632.4,0.09863272]
[1723278078389,1.89915,2632.8,2632.4,0.09863272]
[1723278078987,3.79832,2632.8,2632.4,0.09863272]
[1723278079370,1.89915,2632.8,2632.4,0.09863272]
[1723278080259,3.79831,2632.8,2632.4,0.09863272]
[1723278080650,1.89919,2632.7,2632.4,0.09863272]
[1723278082366,0.59526099,2633.2,2632.5,3.195]
[1723278082684,0.59526099,2633.2,2632.7,3.195]
[1723278082888,7.09008,2634.0,2633.3,3.195]
[1723278083059,0.5949904,2633.5,2633.4,1.96302931]
[1723278083257,0.5949904,2633.5,2633.4,1.99706969]
[1723278083458,1.8982,2634.1,2633.5,1.89861]
[1723278083654,1.89826,2634.0,2633.6,0.09795753]
[1723278083955,1.89826,2634.0,2633.3,6.99241]
[1723278084163,2.3916,2634.0,2633.7,0.0978791]
[1723278084397,2.3916,2634.0,2633.4,1.89867]
[1723278084703,1.89832,2633.9,2633.8,0.09785216]
[1723278084899,2.13748,2633.9,2633.4,0.07593629]
[1723278085195,1.89839,2633.8,2633.3,3.195]
[1723278085393,2.465011,2633.8,2633.3,3.195]
[1723278085699,0.566621,2633.8,2633.3,3.195]
[1723278085872,1.89832,2633.9,2633.3,5.09374]
[1723278088114,1.89832,2633.9,2633.4,1.89868]
[1723278088559,3.79643,2634.1,2633.4,1.89868]
[1723278088759,3.79643,2634.1,2633.4,1.9517263]
[1723278088977,0.379643,2634.0,2633.6,3.359]
[1723278089316,1.89821,2634.1,2633.6,5.31073072]
[1723278090316,2.49298778,2634.3,2633.7,1.89841]
[1723278090680,2.49298778,2634.3,2633.7,1.95161871]
[1723278091582,1.89811,2634.2,2633.8,0.09698966]
[1723278091778,0.43910978,2634.1,2633.8,0.09698966]
[1723278091980,0.43910978,2634.1,2633.7,0.05320871]
[1723278092175,0.43910978,2634.1,2633.9,0.09696272]
[1723278092484,1.89823,2634.1,2633.8,0.09698966]
[1723278092693,1.89823,2634.1,2633.9,0.09696272]
[1723278093220,1.89823,2634.1,2633.7,0.05320871]
[1723278093422,1.89823,2634.1,2634.0,0.09693578]
[1723278093592,5.74205178,2634.1,2633.4,3.359]
[1723278093782,5.74205178,2634.1,2634.0,0.09693578]
[1723278093985,5.74205178,2634.1,2633.4,5.25763]
[1723278094315,2.33735178,2634.1,2633.5,1.89861]
[1723278094480,2.33735178,2634.1,2633.5,1.99568048]
[1723278095090,0.59491778,2634.3,2633.9,3.359]
[1723278095293,1.89798,2634.4,2634.0,0.09693578]
[1723278095604,0.530268,2634.4,2634.0,1.99515578]
[1723278095787,1.89784,2634.6,2634.0,1.99515578]
[1723278095989,3.79572,2634.6,2634.0,1.99515578]
[1723278096192,1.89784,2634.6,2634.0,1.99515578]
[1723278096412,3.79572,2634.6,2634.0,1.99515578]
[1723278096620,4.515762,2634.6,2634.0,1.99515578]
[1723278096826,1.89796,2634.4,2634.0,0.09693578]
[1723278097007,1.89818,2634.1,2634.0,0.09693578]
[1723278097334,1.89818,2634.1,2633.6,3.359]
[1723278097335,1.89835,2633.9,2633.6,3.359]
[1723278098689,1.8984,2633.8,2633.6,3.359]
[1723278099202,1.89835,2633.9,2633.6,3.359]
[1723278100155,3.79644,2634.1,2633.6,3.359]
[1723278100326,1.89821,2634.1,2633.6,3.359]
[1723278101526,1.8983,2634.0,2633.6,3.359]
[1723278102540,1.89821,2634.1,2633.6,3.359]
[1723278103124,3.79645,2634.1,2633.6,3.359]
[1723278103328,1.89821,2634.1,2633.6,3.359]
[1723278104104,1.89829,2634.0,2633.6,3.359]
[1723278104505,1.89821,2634.1,2633.6,3.359]
[1723278105298,3.79645,2634.1,2633.6,3.359]
[1723278106397,3.89821,2634.1,2633.6,3.359]
[1723278106997,3.89821,2634.1,2633.6,5.25754]
[1723278107210,3.89821,2634.1,2633.6,3.359]
[1723278108100,3.89821,2634.1,2633.7,0.09694366]
[1723278109729,2.0,2634.1,2633.7,0.09694366]
[1723278110541,2.0,2634.1,2633.8,3.4567]
[1723278110901,2.0,2634.1,2633.9,0.09688978]
[1723278111202,2.0,2634.1,2634.0,3.4567]
[1723278111736,2.0,2634.1,2634.0,3.55356285]
[1723278111938,2.0,2634.1,2634.0,5.99699714]
[1723278113031,2.0,2634.1,2634.0,7.89524714]
[1723278116949,2.0,2634.1,2634.0,12.79349714]
[1723278117418,2.0,2634.1,2634.0,13.34349714]
[1723278118028,2.0,2634.1,2634.0,48.34349714]
[1723278118356,2.0,2634.1,2634.0,13.34349714]
[1723278122466,2.0,2634.1,2634.0,48.34349714]
[1723278122702,2.0,2634.1,2634.0,46.44524714]
[1723278122866,2.0,2634.1,2634.0,7.89524714]
[1723278123232,2.0,2634.1,2634.0,5.99699714]
[1723278123930,2.0,2634.1,2634.0,7.89524714]
[1723278125239,2.0,2634.1,2634.0,0.09686285]
[1723278125645,2.0,2634.1,2633.8,5.35505]
[1723278125954,2.0,2634.1,2633.9,0.09535157]
[1723278126161,2.0,2634.1,2633.9,1.99366157]
[1723278126677,2.0,2634.1,2634.0,1.89825]
[1723278127057,2.0,2634.1,2634.0,1.99357463]
[1723278128093,2.0,2634.1,2634.0,8.04618409]
[1723278132095,2.0,2634.1,2634.0,6.14793409]
[1723278132400,2.0,2634.1,2634.0,0.83018409]
[1723278132557,2.0,2634.1,2634.0,1.99357463]
[1723278134327,2.0,2634.1,2634.0,7.31132463]
[1723278134499,2.0,2634.1,2634.0,0.09532463]
[1723278134674,2.0,2634.1,2633.8,1.89835]
[1723278134871,2.0,2634.1,2633.9,0.09540455]
[1723278135072,2.0,2634.1,2633.9,1.99370455]
[1723278135302,2.0,2634.1,2633.9,0.09540455]
[1723278136090,2.0,2634.1,2634.0,1.89825]
[1723278136279,2.0,2634.1,2634.0,1.99369388]
[1723278137002,2.0,2634.1,2634.0,3.89194388]
[1723278137802,2.0,2634.1,2634.0,3.96784919]
[1723278138412,2.0,2634.1,2634.0,1.99369388]
[1723278138711,2.0,2634.1,2634.0,2.55495081]
[1723278140212,2.0,2634.1,2634.0,0.65670081]
[1723278140612,2.0,2634.1,2634.0,2.55495081]
[1723278140908,2.0,2634.1,2634.0,0.65670081]
[1723278141514,2.0,2634.1,2634.0,2.55495081]
[1723278142079,2.0,2634.1,2634.0,0.65670081]
[1723278144206,2.0,2634.1,2634.0,0.09544388]
[1723278148186,2.0,2634.1,2634.0,1.99369388]
[1723278148435,2.0,2634.1,2634.0,2.06912999]
[1723278149434,2.0,2634.1,2634.0,3.89194388]
[1723278149723,2.0,2634.1,2634.0,5.57594388]
[1723278149901,2.0,2634.1,2634.0,6.49542581]
[1723278155629,2.0,2634.1,2634.0,9.89062581]
[1723278157804,2.0,2634.1,2634.0,11.54512978]
[1723278158011,2.0,2634.1,2634.0,12.20172439]
[1723278158551,2.0,2634.1,2634.0,10.54722042]
[1723278158852,3.4056,2636.4,2635.8,1.89689]
[1723278159145,1.89634,2636.7,2635.8,1.89689]
[1723278159146,4.5396,2636.7,2636.0,1.89678]
[1723278159322,3.4056,2636.7,2636.3,1.89654]
[1723278159646,3.4056,2637.0,2636.4,1.99096344]
[1723278160283,3.4056,2637.0,2636.4,1.99091344]
[1723278160928,1.89625,2636.8,2636.4,0.09445344]
[1723278161136,1.89631,2636.7,2636.0,1.89676]
[1723278161319,1.89631,2636.7,2636.0,3.03076]
[1723278161526,3.79243,2636.9,2636.1,2.91919105]
[1723278161694,1.89621,2636.9,2636.1,2.91919105]
[1723278161898,1.89621,2636.9,2636.2,1.89666]
[1723278162098,1.89635,2636.7,2636.3,0.09324887]
[1723278162345,1.89635,2636.7,2636.0,1.89676]
[1723278162512,1.89635,2636.7,2636.4,0.09327492]
[1723278162716,1.89635,2636.7,2636.0,1.89675]
[1723278162897,2.3331637,2636.7,2636.1,0.09335559]
[1723278163305,1.89635,2636.7,2636.1,0.09335559]
[1723278164461,0.575577,2636.8,2636.2,1.89666]
[1723278164632,1.89621,2636.9,2636.3,1.89655]
[1723278164839,1.89621,2636.9,2636.3,1.9898518]
[1723278165566,3.4056,2637.0,2636.4,1.8965]
[1723278165766,5.30169,2637.0,2636.4,1.8965]
[1723278166065,6.021459,2637.0,2636.5,0.09328773]
[1723278166454,1.89617,2636.9,2636.5,0.09328773]
[1723278166625,6.021459,2637.0,2636.2,1.89661]
[1723278166822,1.89626,2636.8,2636.6,0.09185708]
[1723278167083,2.6880319,2636.8,2636.2,1.89661]
[1723278167257,2.6880319,2636.8,2636.7,0.0918302]
[1723278167428,2.6880319,2636.8,2636.2,1.89661]
[1723278167629,2.6880319,2636.8,2636.7,0.0918302]
[1723278168269,2.6880319,2636.8,2636.2,1.89661]
[1723278168470,2.6880319,2636.8,2636.7,0.0918302]
[1723278168643,2.3078319,2636.8,2636.2,1.89661]
[1723278169174,2.3078319,2636.8,2636.3,0.09193774]
[1723278169762,1.89638,2636.6,2636.3,0.09193774]
[1723278169934,3.4648,2636.5,2636.3,0.09193774]
[1723278170294,3.4648,2636.5,2636.0,1.89676]
[1723278170476,1.89638,2636.6,2636.0,1.89676]
[1723278170477,1.89624,2636.8,2636.4,0.09185792]
[1723278170634,1.89624,2636.8,2636.2,1.89661]
[1723278170839,2.621957,2636.8,2636.5,0.09183103]
[1723278171157,2.621957,2636.8,2636.6,0.09180415]
[1723278171570,2.621957,2636.8,2636.2,1.89661]
[1723278171945,2.621957,2636.8,2636.3,0.09188481]
[1723278174360,2.621957,2636.8,2636.3,1.98846481]
[1723278174750,2.621957,2636.8,2636.3,0.09188481]
[1723278175501,0.2621957,2636.7,2636.3,0.09188481]
[1723278175789,2.1585257,2636.7,2636.3,0.09188481]
[1723278175951,0.2621957,2636.7,2636.3,0.09188481]
[1723278176150,0.2621957,2636.7,2636.1,1.89673]
[1723278176451,0.2621957,2636.7,2636.4,0.09185792]
[1723278176656,2.621957,2636.8,2636.2,1.89666]
[1723278176884,1.89638,2636.6,2636.5,0.09183103]
[1723278177086,1.8965,2636.5,2635.8,5.20179]
[1723278177359,1.89652,2636.4,2635.9,0.09199238]
[1723278178461,1.89672,2636.2,2635.9,0.09199238]
[1723278178781,1.89672,2636.2,2635.7,7.49]
[1723278178782,1.8968,2636.1,2635.7,7.49]
[1723278178987,1.8968,2636.1,2636.0,0.09221691]
[1723278179188,2.276152,2636.1,2635.7,7.49]
[1723278179365,2.276152,2636.1,2636.0,0.09221691]
[1723278179366,0.379352,2636.1,2636.0,0.09221691]
[1723278179561,1.89674,2636.1,2635.7,7.49]
[1723278179766,1.89674,2636.1,2636.0,0.09221691]
[1723278179998,1.89674,2636.1,2635.7,7.49]
[1723278180199,1.89674,2636.1,2636.0,0.09221691]
[1723278180508,1.89674,2636.1,2635.7,7.49]
[1723278180705,1.89672,2636.2,2636.0,0.09221691]
[1723278181008,1.89672,2636.2,2636.1,0.09219001]
[1723278181499,1.89654,2636.4,2635.7,9.38697]
[1723278181707,1.89654,2636.4,2636.1,0.09219001]
[1723278181906,1.89654,2636.4,2635.8,1.89688]
[1723278182211,1.89659,2636.3,2635.7,8.6184]
[1723278182381,1.89659,2636.3,2635.9,0.09243574]
[1723278182701,1.89654,2636.4,2635.8,0.09246264]
[1723278182902,1.89654,2636.4,2636.0,0.09240884]
[1723278183101,1.89654,2636.4,2635.9,0.09243574]
[1723278183272,1.89654,2636.4,2636.1,0.09238195]
[1723278183477,3.79313,2636.4,2636.0,0.09240884]
[1723278183693,3.79313,2636.4,2635.8,1.89695]
[1723278183694,3.79313,2636.4,2636.2,0.09235506]
[1723278183988,2.6602618,2636.4,2636.3,0.09232817]
[1723278184313,0.7637218,2636.4,2636.3,0.09232817]
[1723278184471,1.89644,2636.6,2635.8,1.89695]
[1723278184671,1.89644,2636.6,2636.3,0.09232817]
[1723278184868,1.89644,2636.6,2636.0,1.89681]
[1723278185089,1.89644,2636.6,2636.4,0.09230128]
[1723278185299,1.89644,2636.6,2635.8,1.8969]
[1723278185479,1.89646,2636.5,2635.9,1.26918]
[1723278185669,1.89652,2636.4,2635.9,1.36161574]
[1723278185872,1.89652,2636.4,2635.9,0.09243574]
[1723278186714,1.89644,2636.6,2635.9,0.09243574]
[1723278186915,3.4648,2636.7,2636.0,1.89677]
[1723278187119,1.89627,2636.8,2636.2,1.89666]
[1723278187478,1.89627,2636.8,2636.3,0.09232817]
[1723278187988,7.11276,2637.0,2636.3,1.98891817]
[1723278188214,1.89612,2637.0,2636.3,0.84228304]
[1723278188412,1.89597,2637.2,2636.5,1.89641]
[1723278188622,1.89597,2637.2,2636.4,1.89646]
[1723278188778,1.89597,2637.2,2636.6,0.08923387]
[1723278188983,1.89609,2637.0,2636.5,0.08926075]
[1723278189206,1.89609,2637.0,2636.7,0.08920699]
[1723278189403,1.89617,2636.9,2636.6,0.08923387]
[1723278189681,1.89617,2636.9,2636.8,0.08918011]
[1723278190182,1.89598,2637.2,2636.3,1.89657]
[1723278190384,1.89616,2636.9,2636.8,0.08918011]
[1723278190581,1.89616,2636.9,2636.3,1.89657]
[1723278190777,1.89616,2636.9,2636.8,0.08918011]
[1723278191003,3.79237,2636.9,2636.2,9.38663]